bitfinex-derivatives/quotes_SOLF0:USTF0_20251122
["timestamp","ask_amount","ask_price","bid_price","bid_amount"]
[1763820769920,0.06047308,126.11,126.09,134.9451]
[1763820770124,3.27047308,126.11,126.08,0.05583198]
[1763820773224,3.27047308,126.11,126.05,23.8643]
[1763820774330,3.27047308,126.11,126.07,0.05194302]
[1763820785345,3.21,126.1,126.07,0.05194302]
[1763820786538,3.19,126.08,126.01,20.4943988]
[1763820787641,0.05546079,126.06,126.01,20.4943988]
[1763820787846,3.24546079,126.06,126.03,0.05698752]
[1763820791744,3.19,126.04,125.97,3.7743988]
[1763820791946,3.19,126.04,125.97,27.09641737]
[1763820792149,3.19,126.04,125.97,3.7743988]
[1763820792343,3.19,126.04,125.99,3.7743988]
[1763820792748,3.24015705,126.03,125.99,3.7743988]
[1763820796253,3.24015705,126.03,126.0,7.1473]
[1763820796643,3.24015705,126.03,126.01,7.1467]
[1763820796850,0.05015705,126.03,126.01,7.1467]
[1763820797553,0.05015705,126.03,126.01,10.9210988]
[1763820797752,3.19,126.08,126.02,7.146]
[1763820798753,7.1409,126.12,126.01,3.7743988]
[1763820798754,3.24757177,126.06,126.04,0.05898289]
[1763820798953,3.24986103,126.06,126.04,0.05341281]
[1763820800154,3.24986103,126.06,126.04,7.19841281]
[1763820800857,3.24986103,126.06,126.04,0.05341281]
[1763820802260,3.24986103,126.06,126.01,7.1466]
[1763820802761,3.24986103,126.06,126.01,111.1739]
[1763820803764,3.24986103,126.06,126.0,131.6743988]
[1763820805266,3.24986103,126.06,126.02,7.1462]
[1763820805864,3.24986103,126.06,126.03,7.1456]
[1763820807963,0.05986103,126.06,126.02,3.7743988]
[1763820808554,0.05986103,126.06,126.03,7.1456]
[1763820810169,3.24986103,126.06,126.03,7.1456]
[1763820813171,3.19,126.09,126.05,3.7743988]
[1763820813363,3.19,126.12,126.05,3.7743988]
[1763820814363,3.19,126.09,126.07,0.05258325]
[1763820814570,3.19,126.09,126.07,0.05533072]
[1763820815573,3.24867238,126.1,126.07,0.05533072]
[1763820815961,3.24867238,126.1,126.07,7.19873072]
[1763820816462,0.05867238,126.1,126.07,10.97312952]
[1763820817359,0.05867238,126.1,126.07,3.82972952]
[1763820817565,0.05867238,126.1,126.08,7.1427]
[1763820818362,0.05867238,126.1,126.08,23.8627]
[1763820818763,3.32,126.14,126.11,7.141]
[1763820818973,3.32,126.16,126.1,111.0931]
[1763820819181,3.32,126.16,126.11,114.8601988]
[1763820819871,0.05468323,126.15,126.12,0.05923665]
[1763820820065,0.05468323,126.15,126.13,7.14]
[1763820820776,3.32,126.18,126.13,7.14]
[1763820820777,3.32,126.18,126.15,7.1385]
[1763820820977,3.32,126.22,126.15,16.7]
[1763820821875,3.32,126.19,126.17,0.05980594]
[1763820823576,0.05413734,126.2,126.17,0.05980594]
[1763820824476,3.37413734,126.2,126.17,0.05980594]
[1763820824875,0.05413734,126.2,126.17,0.05980594]
[1763820825579,0.05413734,126.2,126.18,7.1371]
[1763820827480,3.37413734,126.2,126.17,16.75980594]
[1763820828678,0.05413734,126.2,126.17,16.75980594]
[1763820828871,0.05413734,126.2,126.17,23.89740594]
[1763820830175,3.37413734,126.2,126.17,23.89740594]
[1763820830769,0.05413734,126.2,126.18,7.137]
[1763820831578,3.32,126.25,126.2,7.1356]
[1763820832083,3.32,126.25,126.21,7.1354]
[1763820832576,3.37956516,126.24,126.22,0.05591346]
[1763820833080,0.05956516,126.24,126.22,7.19071346]
[1763820833374,0.05956516,126.24,126.22,9.60045919]
[1763820836075,0.05956516,126.24,126.22,7.19071346]
[1763820839378,0.05956516,126.24,126.23,2.40974573]
[1763820840480,3.32,126.27,126.23,2.40974573]
[1763820841586,3.32,126.25,126.23,2.40974573]
[1763820841885,3.32,126.25,126.23,2.46854844]
[1763820842087,3.32,126.25,126.23,0.05880271]
[1763820844482,0.05552864,126.26,126.24,2.40974573]
[1763820844779,0.05552864,126.26,126.24,9.54344573]
[1763820844985,0.05552864,126.26,126.24,26.22344573]
[1763820847091,3.19,126.31,126.26,7.1327]
[1763820847295,3.19,126.31,126.27,2.40974573]
[1763820847887,3.19,126.31,126.24,23.8137]
[1763820848090,3.24664643,126.29,126.26,0.05816558]
[1763820852299,0.05664643,126.29,126.27,2.40974573]
[1763820852685,0.05664643,126.29,126.27,9.54174573]
[1763820853293,3.24664643,126.29,126.26,2.46791131]
[1763820854597,0.05664643,126.29,126.28,2.40974573]
[1763820854900,3.19,126.34,126.29,110.9275]
[1763820855106,3.19,126.36,126.32,7.1291]
[1763820855906,3.24590314,126.35,126.33,0.06021539]
[1763820858503,0.05590314,126.35,126.33,9.59846112]
[1763820860106,3.19,126.37,126.34,7.1279]
[1763820860410,3.19,126.41,126.35,2.40974573]
[1763820861111,3.24492058,126.39,126.37,0.05275914]
[1763820862708,0.05492058,126.39,126.37,0.05275914]
[1763820863505,0.05492058,126.39,126.37,7.17905914]
[1763820864415,0.05492058,126.39,126.38,2.40974573]
[1763820864617,3.19,126.45,126.38,9.53554573]
[1763820864907,3.19,126.45,126.38,2.40974573]
[1763820865313,3.19,126.45,126.4,2.40974573]
[1763820865504,3.19,126.45,126.42,2.40974573]
[1763820865709,3.24399555,126.45,126.42,2.46852142]
[1763820867108,3.24399555,126.45,126.42,9.59202142]
[1763820867309,0.05399555,126.45,126.44,2.40974573]
[1763820867506,3.19,126.48,126.44,19.06974573]
[1763820867706,3.19,126.48,126.44,26.19204573]
[1763820867913,3.19,126.52,126.46,2.40974573]
[1763820868213,3.19,126.52,126.44,16.66]
[1763820868410,0.05151149,126.49,126.47,0.0546774]
[1763820868815,3.24151149,126.49,126.47,2.46442313]
[1763820869009,3.24151149,126.49,126.47,0.0546774]
[1763820873116,0.05151149,126.49,126.47,2.46442313]
[1763820873322,3.24151149,126.49,126.47,2.46442313]
[1763820874019,0.05151149,126.49,126.47,2.46442313]
[1763820874325,3.19,126.52,126.47,9.58512313]
[1763820874524,3.19,126.52,126.49,2.40974573]
[1763820875419,0.04994481,126.52,126.51,2.40974573]
[1763820875825,3.19,126.55,126.51,2.40974573]
[1763820876222,2.40974573,126.59,126.53,2.40974573]
[1763820876423,3.21,126.58,126.53,2.40974573]
[1763820876927,0.05075962,126.57,126.54,0.05115545]
[1763820877129,3.23075962,126.57,126.54,0.05115545]
[1763820877420,0.05075962,126.57,126.55,2.40974573]
[1763820877627,3.18,126.63,126.55,2.40974573]
[1763820877829,3.18,126.63,126.57,2.40974573]
[1763820878324,3.18,126.63,126.59,2.40974573]
[1763820878527,3.18,126.61,126.48,23.8]
[1763820878724,3.18,126.61,126.34,94.9]
[1763820878725,3.18,126.56,126.49,2.65974573]
[1763820879026,3.18,126.56,126.5,5.62974573]
[1763820879223,3.18,126.56,126.52,5.62974573]
[1763820879624,0.05108762,126.55,126.53,3.27134776]
[1763820880130,0.05108762,126.55,126.53,0.05134776]
[1763820880924,3.18,126.59,126.54,3.22]
[1763820881124,3.18,126.62,126.56,5.62974573]
[1763820881932,0.05549929,126.6,126.58,0.05838415]
[1763820882134,3.18,126.59,126.58,0.05838415]
[1763820882635,3.18,126.59,126.54,2.40974573]
[1763820883429,3.23940977,126.58,126.55,0.05502061]
[1763820883635,3.23940977,126.58,126.55,3.27920057]
[1763820884031,3.23940977,126.58,126.55,0.05920057]
[1763820886333,0.05940977,126.58,126.55,5.6889463]
[1763820886939,3.23940977,126.58,126.55,0.05920057]
[1763820888535,3.18,126.54,126.47,3.22]
[1763820888734,3.18,126.52,126.47,3.22]
[1763820889531,0.05620665,126.51,126.48,3.27766809]
[1763820889837,0.05620665,126.51,126.49,3.22]
[1763820891137,0.05620665,126.51,126.49,10.3394]
[1763820891437,3.18,126.55,126.51,3.22]
[1763820891635,3.18,126.55,126.48,5.62974573]
[1763820891945,3.18,126.55,126.44,22.64]
[1763820891946,3.18,126.53,126.45,3.22]
[1763820892131,3.18,126.53,126.46,2.40974573]
[1763820892533,3.23439089,126.51,126.48,0.05048942]
[1763820894032,0.05439089,126.51,126.48,5.68023515]
[1763820894336,0.05439089,126.51,126.49,3.22]
[1763820895631,0.05439089,126.51,126.49,10.3396]
[1763820896535,0.05439089,126.51,126.5,3.22]
[1763820897930,3.23439089,126.51,126.48,0.05048942]
[1763820898234,3.23439089,126.51,126.48,3.27048942]
[1763820898440,0.05439089,126.51,126.48,3.27048942]
[1763820899241,0.05439089,126.51,126.49,3.22]
[1763820900131,0.05439089,126.51,126.5,3.22]
[1763820900333,3.18,126.59,126.53,3.22]
[1763820901337,0.05365122,126.57,126.55,3.27935788]
[1763820901642,3.18,126.61,126.56,3.22]
[1763820901837,3.18,126.66,126.58,3.22]
[1763820902043,3.18,126.66,126.55,3.22]
[1763820902534,3.18,126.62,126.55,7.1161]
[1763820902837,3.20518689,126.6,126.57,0.05959116]
[1763820903037,3.20518689,126.6,126.57,0.0571247]
[1763820903427,3.18,126.63,126.59,3.22]
[1763820904438,3.18,126.63,126.6,3.27333968]
[1763820904641,3.18,126.66,126.6,3.27333968]
[1763820904842,3.18,126.66,126.62,0.05094767]
[1763820907029,110.5798,126.69,126.58,19.77]
[1763820907030,3.09,126.64,126.58,19.77]
[1763820907438,3.09,126.64,126.58,130.4402]
[1763820907742,3.09,126.64,126.6,7.1133]
[1763820907936,3.14001408,126.63,126.61,0.05297387]
[1763820908143,3.14083561,126.63,126.61,0.05206718]
[1763820909235,0.05083561,126.63,126.61,0.05206718]
[1763820909639,3.09,126.66,126.62,3.11]
[1763820909839,3.09,126.69,126.61,0.05206718]
[1763820910040,3.09,126.67,126.59,62.0]
[1763820910246,3.09,126.65,126.55,113.8065]
[1763820910448,3.09,126.63,126.55,113.8065]
[1763820910641,3.09,126.63,126.58,0.05758726]
[1763820911641,3.09,126.61,126.54,16.64]
[1763820911845,3.09,126.59,126.49,130.5146]
[1763820912144,3.09,126.57,126.49,16.66]
[1763820912447,3.09,126.58,126.53,3.11]
[1763820912649,3.09,126.61,126.54,3.11]
[1763820912838,3.09,126.61,126.55,7.1161]
[1763820913041,0.05769932,126.59,126.56,0.05604332]
[1763820913442,3.14769932,126.59,126.56,0.05604332]
[1763820913954,3.09,126.57,126.5,7.1188]
[1763820914457,3.09,126.57,126.49,130.519]
[1763820914651,3.09,126.57,126.52,10.2278]
[1763820914957,0.05385357,126.56,126.53,3.1607153]
[1763820915154,0.05385357,126.56,126.53,3.1685626]
[1763820916049,0.05385357,126.56,126.54,7.1167]
[1763820916252,0.05385357,126.56,126.54,10.2267]
[1763820916456,3.14385357,126.56,126.53,0.0585626]
[1763820917556,0.05385357,126.56,126.54,113.8182]
[1763820917743,0.05385357,126.56,126.54,3.11]
[1763820918150,0.05385357,126.56,126.55,3.11]
[1763820918358,3.09,126.64,126.55,3.11]
[1763820918548,3.09,126.64,126.55,113.8047]
[1763820918749,3.09,126.63,126.56,113.7992]
[1763820919155,3.09,126.63,126.56,10.2258]
[1763820919349,0.05798471,126.61,126.58,0.06028036]
[1763820920055,3.14798471,126.61,126.58,0.06028036]
[1763820920353,3.14798471,126.61,126.58,7.17478036]
[1763820920561,0.05798471,126.61,126.58,7.17478036]
[1763820922360,3.14798471,126.61,126.58,0.06028036]
[1763820925353,0.05798471,126.61,126.58,3.17028036]
[1763820926057,0.05798471,126.61,126.59,7.1139]
[1763820927754,3.14798471,126.61,126.58,0.06028036]
[1763820927958,0.05798471,126.61,126.58,3.17028036]
[1763820928560,3.14798471,126.61,126.58,0.06028036]
[1763820929065,3.09,126.6,126.52,19.79]
[1763820929263,3.09,126.58,126.52,16.68]
[1763820929661,3.09,126.58,126.5,3.11]
[1763820930162,3.14920439,126.55,126.53,0.05797866]
[1763820930563,0.05920439,126.55,126.53,0.05797866]
[1763820933267,0.05920439,126.55,126.53,3.16797866]
[1763820933972,7.1137,126.6,126.54,7.1165]
[1763820934165,10.2037,126.6,126.54,7.1165]
[1763820934967,0.05307357,126.58,126.56,0.059427]
[1763820935466,3.14307357,126.58,126.56,0.059427]
[1763820935667,0.05307357,126.58,126.56,0.059427]
[1763820937068,0.05307357,126.58,126.56,10.504927]
[1763820937477,0.05307357,126.58,126.57,3.27]
[1763820938975,0.05307357,126.58,126.56,10.444927]
[1763820939371,0.05307357,126.58,126.57,3.27]
[1763820940771,3.11,126.66,126.6,3.27]
[1763820940971,3.11,126.64,126.54,14.67451202]
[1763820941271,3.11,126.64,126.54,3.27]
[1763820941471,3.11,126.62,126.54,113.9758]
[1763820941673,3.11,126.65,126.58,113.9416]
[1763820941869,3.11,126.65,126.6,3.32124681]
[1763820942262,3.11,126.68,126.61,113.9144]
[1763820942467,3.11,126.68,126.63,3.32462581]
[1763820942773,16.68,126.71,126.64,3.27]
[1763820942972,16.68,126.71,126.66,0.05959491]
[1763820942973,3.11,126.7,126.66,0.05959491]
[1763820943580,11.038,126.76,126.69,3.27]
[1763820943770,3.11,126.75,126.71,0.05711071]
[1763820943973,3.11,126.75,126.72,0.05817844]
[1763820945270,3.11,126.8,126.73,113.8069]
[1763820945470,3.11,126.83,126.75,113.7946]
[1763820945667,3.11,126.83,126.75,3.27]
[1763820945877,3.11,126.83,126.78,0.05681178]
[1763820946677,3.11,126.83,126.78,3.32681178]
[1763820946875,110.3972,126.9,126.78,3.32681178]
[1763820946876,3.11,126.86,126.8,110.4815]
[1763820947072,3.11,126.89,126.82,3.32794219]
[1763820947269,3.11,126.89,126.79,16.7]
[1763820947475,3.11,126.86,126.75,19.97]
[1763820947769,3.11,126.85,126.76,65.27]
[1763820947975,3.11,126.85,126.77,3.27]
[1763820948187,3.11,126.85,126.77,120.879]
[1763820948370,19.81,126.9,126.8,113.7479]
[1763820948570,3.1631386,126.86,126.84,0.05135904]
[1763820948771,0.0531386,126.86,126.84,0.05135904]
[1763820949174,0.0531386,126.86,126.84,3.32135904]
[1763820949581,0.0531386,126.86,126.84,113.76445904]
[1763820949771,0.0531386,126.86,126.84,3.32135904]
[1763820949972,3.11,126.94,126.87,3.27]
[1763820950279,3.11,126.97,126.89,3.27]
[1763820950483,3.11,127.0,126.91,3.27]
[1763820950876,3.11,126.99,126.88,130.3994]
[1763820951076,3.11,126.97,126.94,0.04996782]
[1763820951272,3.11,126.97,126.88,3.27]
[1763820951679,3.11,126.97,126.9,3.27]
[1763820951985,3.11,126.97,126.87,19.99]
[1763820952170,0.05545075,126.93,126.91,3.32720101]
[1763820952375,0.05945769,126.93,126.91,3.32876864]
[1763820953585,3.11,126.99,126.92,3.27]
[1763820954080,3.11,127.01,126.93,3.27]
[1763820954480,3.11,127.01,126.96,0.05714383]
[1763820955280,3.11,126.99,126.96,0.05714383]
[1763820956484,10.2005,127.02,126.96,0.05714383]
[1763820956683,26.9205,127.02,126.96,0.05714383]
[1763820956881,3.11,127.0,126.96,0.05714383]
[1763820957394,3.11,127.0,126.96,3.32714383]
[1763820957582,3.38442,127.04,126.97,3.27]
[1763820957777,3.38442,127.04,126.99,3.32747445]
[1763820958279,113.66022,127.04,126.99,0.05747445]
[1763820958480,3.11,127.03,126.99,0.05747445]
[1763820958686,3.11,127.03,126.99,3.32747445]
[1763820959391,0.27442,127.04,126.99,3.32747445]
[1763820959784,117.3146,127.1,126.99,120.25762594]
[1763820959986,3.11,127.09,127.03,0.06014387]
[1763820960383,3.11,127.08,127.03,0.06014387]
[1763820960581,3.11,127.08,127.03,3.33014387]
[1763820960895,16.72,127.1,127.03,3.33014387]
[1763820961391,3.11,127.11,127.04,3.27]
[1763820961589,3.11,127.11,127.06,0.05643193]
[1763820961781,7.0835,127.14,127.06,3.32643193]
[1763820962089,3.11,127.13,127.09,0.05404443]
[1763820962693,3.11,127.15,127.09,3.32404443]
[1763820963288,3.11,127.12,127.09,0.05404443]
[1763820963485,3.11,127.1,127.03,3.27]
[1763820963690,3.11,127.06,126.97,3.27]
[1763820963889,3.11,127.06,126.97,113.6034]
[1763820964185,3.11,127.06,126.99,120.6758]
[1763820964491,0.05732176,127.04,127.02,3.27]
[1763820964688,0.05732176,127.04,127.02,0.05682997]
[1763820964889,3.16732176,127.04,127.02,0.05682997]
[1763820965093,0.05732176,127.04,127.02,0.05682997]
[1763820965295,0.05732176,127.04,127.02,3.32682997]
[1763820966091,16.74,127.09,127.04,110.2709]
[1763820966296,3.2,127.11,127.01,19.88]
[1763820966597,3.2,127.11,127.04,3.14]
[1763820966794,3.2,127.11,127.05,113.4033]
[1763820967001,3.2,127.15,127.08,3.14]
[1763820967393,3.2,127.15,127.1,0.0538216]
[1763820967599,3.2,127.18,127.1,3.1938216]
[1763820967895,3.2,127.18,127.13,3.19567297]
[1763820968494,19.94,127.21,127.13,3.19567297]
[1763820968695,3.2,127.21,127.16,3.20032382]
[1763820968900,3.2,127.21,127.16,0.06032382]
[1763820969494,3.2,127.19,127.16,0.06032382]
[1763820969797,3.2,127.2,127.16,0.06032382]
[1763820970102,3.2,127.2,127.09,110.2261]
[1763820970103,3.2,127.13,127.02,3.14]
[1763820970301,3.2,127.12,127.02,113.4296]
[1763820970596,7.0848,127.12,127.02,120.5195]
[1763820970801,3.2,127.11,127.03,3.14]
[1763820970995,3.2,127.07,127.06,0.05664794]
[1763820971197,0.05186531,127.08,126.99,3.14]
[1763820971198,3.2,127.06,126.99,3.14]
[1763820971496,3.2,127.1,127.02,113.4298]
[1763820971696,3.2,127.1,127.03,3.14]
[1763820971888,10.2841,127.13,127.04,3.14]
[1763820972091,0.05864248,127.1,127.07,0.05928204]
[1763820972289,0.05864248,127.1,127.09,3.14]
[1763820972491,9.81765149,127.2,127.11,3.14]
[1763820972694,9.81765149,127.2,127.11,113.3491]
[1763820972894,9.81765149,127.2,127.1,110.2197]
[1763820972895,3.2,127.23,127.14,3.14]
[1763820973091,3.2,127.23,127.15,3.14]
[1763820973498,0.05832928,127.2,127.18,3.19668468]
[1763820973698,0.05499526,127.2,127.18,3.1974534]
[1763820973900,30.47445149,127.26,127.18,3.1974534]
[1763820973901,3.2,127.27,127.2,3.14]
[1763820974102,3.2,127.32,127.21,113.2639]
[1763820974404,9.81765149,127.32,127.23,113.248]
[1763820974602,3.2,127.35,127.25,3.14]
[1763820974905,3.2,127.35,127.29,0.05620833]
[1763820975392,9.81765149,127.39,127.29,0.05620833]
[1763820975595,9.81765149,127.39,127.33,0.05828864]
[1763820975795,9.81765149,127.39,127.27,6.61765149]
[1763820975796,3.2,127.37,127.26,62.0]
[1763820975992,3.2,127.36,127.26,62.0]
[1763820976293,3.2,127.32,127.21,3.14]
[1763820976494,3.2,127.31,127.21,3.14]
[1763820976695,3.2,127.3,127.2,117.212]
[1763820976895,0.05505716,127.26,127.24,3.2000548]
[1763820977099,3.2,127.34,127.27,113.2111]
[1763820977303,3.2,127.35,127.27,3.14]
[1763820977505,3.2,127.34,127.25,3.14]
[1763820977806,120.2578,127.37,127.27,3.14]
[1763820978005,3.2,127.37,127.29,113.1929]
[1763820978202,109.9603,127.41,127.29,113.1929]
[1763820978203,129.9531,127.41,127.31,3.19643078]
[1763820978406,3.2,127.4,127.35,0.05464758]
[1763820978802,3.2,127.38,127.27,3.14]
[1763820979102,3.2,127.38,127.31,3.14]
[1763820980010,3.25496784,127.36,127.33,0.05901171]
[1763820980209,3.25496784,127.36,127.27,3.14]
[1763820980210,3.2,127.35,127.27,3.14]
[1763820980803,3.2,127.34,127.25,16.8]
[1763820981000,3.2,127.38,127.29,3.14]
[1763820981207,0.05051191,127.35,127.32,3.19047989]
[1763820981603,3.25051191,127.35,127.32,0.05047989]
[1763820981807,3.25051191,127.35,127.25,110.085]
[1763820982107,3.2,127.32,127.24,3.14]
[1763820982510,3.2,127.31,127.21,16.8]
[1763820982705,113.2436,127.31,127.22,3.14]
[1763820983010,3.25856062,127.28,127.25,0.05005646]
[1763820983204,3.25856062,127.28,127.2,3.14]
[1763820983505,3.25856062,127.28,127.18,6.61765149]
[1763820983506,3.2,127.35,127.27,113.2107]
[1763820983711,16.82,127.36,127.3,113.1842]
[1763820983900,3.2,127.39,127.31,113.1758]
[1763820984211,16.82,127.41,127.33,3.14]
[1763820984511,0.05934859,127.36,127.35,3.14]
[1763820984804,3.2,127.43,127.36,3.14]
[1763820985015,3.2,127.42,127.32,3.14]
[1763820985202,3.2,127.38,127.28,3.14]
[1763820985398,3.2,127.36,127.27,16.82]
[1763820985598,3.2,127.35,127.27,16.82]
[1763820985903,0.0593362,127.32,127.3,0.05722977]
[1763820986102,3.2593362,127.32,127.3,0.05722977]
[1763820986301,3.2593362,127.32,127.25,110.087]
[1763820986302,0.0593362,127.32,127.25,110.087]
[1763820986500,3.2,127.36,127.28,3.14]
[1763820986698,329.5997,127.51,127.31,6.61765149]
[1763820986699,16.84,127.41,127.31,6.61765149]
[1763820986898,113.1257,127.45,127.29,126.8959]
[1763820986899,3.2,127.45,127.36,3.14]
[1763820987107,16.84,127.48,127.39,113.1055]
[1763820987302,10.264,127.49,127.42,3.19068549]
[1763820987303,0.05705321,127.45,127.42,3.19068549]
[1763820987501,3.25705321,127.45,127.42,0.05068549]
[1763820987708,3.25705321,127.45,127.35,3.14]
[1763820987910,3.2,127.45,127.35,3.14]
[1763820988210,3.2,127.43,127.36,3.14]
[1763820988401,3.2,127.42,127.32,3.14]
[1763820988596,3.2,127.38,127.28,113.1981]
[1763820988798,3.2,127.37,127.28,3.14]
[1763820989009,3.2,127.33,127.24,3.14]
[1763820989213,3.2,127.31,127.2,113.2733]
[1763820989506,113.2586,127.29,127.2,3.14]
[1763820989709,110.0248,127.33,127.24,3.14]
[1763820989901,3.2,127.31,127.2,113.2703]
[1763820990103,0.05612488,127.27,127.24,3.20041207]
[1763820990303,3.25612488,127.27,127.24,0.06041207]
[1763820990709,3.2,127.26,127.16,16.88]
[1763820990909,9.81765149,127.31,127.2,3.14]
[1763820991105,3.2,127.31,127.22,120.3352]
[1763820991311,119.82455149,127.35,127.24,3.14]
[1763820991505,110.0162,127.34,127.24,3.14]
[1763820991712,0.06016452,127.29,127.27,0.05640489]
[1763820992002,0.06016452,127.29,127.27,3.19640489]
[1763820992314,0.06016452,127.29,127.27,0.05640489]
[1763820992513,3.26016452,127.29,127.27,0.05640489]
[1763820992715,3.26016452,127.29,127.21,23.51765149]
[1763820993022,3.2,127.32,127.23,3.14]
[1763820993313,120.3237,127.3,127.21,23.51765149]
[1763820993510,10.2749,127.3,127.21,16.9]
[1763820993709,0.05780724,127.27,127.24,0.05150044]
[1763820994418,3.25780724,127.27,127.24,0.05150044]
[1763820994808,3.2,127.25,127.17,6.61765149]
[1763820995009,113.2947,127.25,127.15,16.92]
[1763820995406,3.2,127.22,127.14,3.14]
[1763820995607,3.2,127.22,127.11,6.61765149]
[1763820995608,3.2,127.21,127.11,6.61765149]
[1763820995812,0.04991816,127.17,127.15,0.05752773]
[1763820996219,3.11991816,127.17,127.1,16.92]
[1763820996910,3.07,127.13,127.03,3.31]
[1763820997224,0.05457125,127.09,127.07,0.05266997]
[1763820998821,3.07457125,127.09,127.07,0.05266997]
[1763820999020,3.07457125,127.09,127.01,16.92]
[1763820999221,3.02,127.13,127.02,110.2875]
[1763820999419,16.94,127.11,127.02,110.2875]
[1763820999621,3.02,127.13,127.04,110.2698]
[1763820999919,3.02,127.13,127.03,113.3786]
[1763821000111,3.02,127.13,127.07,0.05149889]
[1763821000112,0.0562064,127.09,127.07,0.05149889]
[1763821000718,0.0562064,127.09,127.07,3.15149889]
[1763821000910,0.0562064,127.09,127.07,0.05149889]
[1763821003021,0.0562064,127.09,127.07,3.15149889]
[1763821003221,0.0562064,127.09,127.07,0.05149889]
[1763821004921,3.0762064,127.09,127.07,0.05149889]
[1763821005327,4.6562064,127.09,126.99,130.3484]
[1763821005621,110.1976,127.13,127.03,3.1]
[1763821005622,3.02,127.13,127.03,3.1]
[1763821005825,3.02,127.13,126.99,143.78875144]
[1763821005826,3.02,127.1,126.99,146.88875144]
[1763821006027,3.02,127.08,126.99,3.1]
[1763821006223,3.02,127.06,126.98,16.96]
[1763821006426,3.07533961,127.05,127.02,0.0504637]
[1763821007026,3.02,127.04,126.95,3.1]
[1763821007224,3.02,127.03,126.95,3.1]
[1763821007928,3.02,127.03,126.9,126.92985144]
[1763821007929,3.02,127.03,126.9,3.1]
[1763821008127,3.08035552,126.98,126.95,0.05373921]
[1763821008430,0.06035552,126.98,126.95,0.05373921]
[1763821008618,3.08035552,126.98,126.95,0.05373921]
[1763821008818,3.08035552,126.98,126.9,3.1]
[1763821008819,3.08035552,126.98,126.87,7.0983]
[1763821009023,3.02,126.96,126.86,3.1]
[1763821009219,3.02,126.98,126.88,120.608]
[1763821009422,3.02,126.97,126.86,110.429]
[1763821009631,3.02,126.97,126.87,3.1]
[1763821009825,0.05640631,126.93,126.87,3.1]
[1763821010734,0.05640631,126.93,126.89,3.1]
[1763821010939,0.05640631,126.93,126.91,3.1]
[1763821011431,0.05640631,126.93,126.89,3.1]
[1763821012024,0.05640631,126.93,126.89,120.6004]
[1763821012223,3.07640631,126.93,126.85,3.1]
[1763821012533,3.07618617,126.9,126.85,3.1]
[1763821012930,0.05618617,126.9,126.83,110.4547]
[1763821013236,0.05618617,126.9,126.88,3.1]
[1763821013430,0.05618617,126.9,126.89,3.1]
[1763821013635,3.02,126.98,126.89,3.1]
[1763821013942,3.02,126.97,126.85,130.07525144]
[1763821014139,3.02,126.95,126.85,113.5349]
[1763821014332,3.02,126.95,126.87,113.5202]
[1763821014531,0.05596084,126.92,126.9,0.05907138]
[1763821015734,3.07596084,126.92,126.9,0.05907138]
[1763821016335,0.05596084,126.92,126.9,0.05907138]
[1763821017148,0.05596084,126.92,126.9,3.15907138]
[1763821017638,3.02,127.0,126.91,110.3855]
[1763821017833,3.02,126.99,126.9,3.1]
[1763821018228,3.02,126.99,126.9,10.1964]
[1763821018841,0.05015345,126.96,126.93,0.05158691]
[1763821019035,0.05015345,126.96,126.94,3.1]
[1763821019338,0.05015345,126.96,126.93,0.05158691]
[1763821019942,3.07015345,126.96,126.93,0.05158691]
[1763821020447,3.07015345,126.96,126.82,110.4578]
[1763821020448,3.02,126.91,126.81,3.1]